bitfinex-derivatives/quotes_SOLF0:USTF0_20250821
["timestamp","ask_amount","ask_price","bid_price","bid_amount"]
[1755776161134,2.78,184.34,184.28,0.09]
[1755776161326,2.78,184.33,184.27,5.4269]
[1755776161525,2.35436746,184.32,184.25,0.0343916]
[1755776161729,2.78,184.31,184.24,0.09]
[1755776161926,2.35436746,184.3,184.22,132.52]
[1755776162131,2.35436746,184.26,184.21,0.09]
[1755776162326,2.78,184.23,184.19,132.65]
[1755776163031,2.78,184.23,184.19,0.09]
[1755776163234,2.35436746,184.24,184.16,0.09]
[1755776163836,2.35436746,184.24,184.18,5.4295]
[1755776164134,2.78,184.21,184.14,4.54406286]
[1755776164433,2.35436746,184.32,184.14,4.54406286]
[1755776164434,2.78,184.25,184.16,0.09]
[1755776164836,2.78,184.25,184.21,5.4287]
[1755776165034,2.78,184.24,184.21,5.4287]
[1755776165332,2.78,184.24,184.18,0.09]
[1755776165536,2.78,184.23,184.19,5.4293]
[1755776165731,2.78,184.23,184.19,5.5193]
[1755776165925,2.35436746,184.26,184.19,5.4293]
[1755776166128,2.78,184.23,184.15,132.6]
[1755776167535,2.35436746,184.24,184.19,5.4293]
[1755776167830,2.78,184.23,184.13,7.84338918]
[1755776168032,2.35436746,184.2,184.14,0.09]
[1755776168240,2.78,184.19,184.11,132.77]
[1755776168431,2.35436746,184.18,184.11,0.09]
[1755776168638,2.78,184.17,184.11,0.09]
[1755776168826,2.78,184.17,184.12,5.4313]
[1755776169136,2.78,184.16,184.12,0.09]
[1755776169334,5.13436746,184.16,184.09,364.64]
[1755776170034,2.35436746,184.16,184.09,364.64]
[1755776170631,2.78,184.15,184.09,364.64]
[1755776171339,2.78,184.14,184.12,5.4314]
[1755776171837,2.78,184.14,184.13,5.4312]
[1755776172036,2.78,184.14,184.09,364.64]
[1755776172339,2.78,184.14,184.11,5.4316]
[1755776174041,2.78,184.14,184.12,5.4315]
[1755776175037,2.35436746,184.16,184.13,5.4312]
[1755776175239,5.13436746,184.16,184.13,5.4312]
[1755776176040,2.78,184.15,184.13,5.4312]
[1755776176737,2.78,184.15,184.12,5.4315]
[1755776176943,2.35436746,184.16,184.11,0.09]
[1755776177143,2.78,184.15,184.11,0.09]
[1755776177643,2.78,184.14,184.11,0.09]
[1755776178338,2.78,184.14,184.11,5.4317]
[1755776178843,2.35436746,184.16,184.11,5.4317]
[1755776179039,2.78,184.14,184.11,5.4317]
[1755776179241,2.78,184.13,184.11,5.4317]
[1755776179941,2.78,184.12,184.11,5.4317]
[1755776181940,2.35436746,184.16,184.11,5.4317]
[1755776182147,2.78,184.14,184.11,5.4317]
[1755776182543,2.35436746,184.16,184.11,5.4317]
[1755776182844,2.94,184.13,184.11,5.4317]
[1755776184148,2.94,184.13,184.12,5.4315]
[1755776184349,2.94,184.15,184.12,5.4315]
[1755776184543,2.94,184.14,184.12,5.4315]
[1755776185043,2.35436746,184.16,184.09,0.09]
[1755776185239,2.94,184.21,184.11,0.09]
[1755776185645,2.94,184.21,184.1,2.35436746]
[1755776185646,2.35436746,184.23,184.1,2.35436746]
[1755776185841,2.94,184.22,184.11,0.09]
[1755776186046,2.94,184.18,184.11,0.09]
[1755776186246,2.35436746,184.19,184.13,5.431]
[1755776186447,2.94,184.17,184.13,5.521]
[1755776187152,2.35436746,184.19,184.13,0.09]
[1755776187453,2.94,184.18,184.09,0.09]
[1755776188049,2.94,184.18,184.11,5.4316]
[1755776188252,2.94,184.18,184.09,0.09]
[1755776188749,5.29436746,184.16,184.09,0.09]
[1755776189647,2.94,184.14,184.11,5.4317]
[1755776190155,2.94,184.13,184.1,5.432]
[1755776190547,2.94,184.13,184.1,5.522]
[1755776191049,2.94,184.13,184.11,5.4317]
[1755776191253,2.94,184.13,184.1,0.09]
[1755776191452,2.94,184.13,184.1,5.5219]
[1755776191847,2.94,184.13,184.08,132.64]
[1755776192043,2.94,184.13,184.09,0.09]
[1755776192356,2.94,184.15,184.08,132.64]
[1755776192652,2.35436746,184.16,184.08,132.64]
[1755776192653,2.94,184.14,184.1,5.4319]
[1755776192853,2.94,184.13,184.1,5.4319]
[1755776193452,2.94,184.13,184.08,132.73]
[1755776193647,2.94,184.15,184.04,6.89843032]
[1755776193843,2.94,184.12,184.05,0.09]
[1755776194050,2.35436746,184.1,184.02,5.4895095]
[1755776194250,2.94,184.09,184.02,0.94544664]
[1755776194555,2.94,184.09,184.05,5.4335]
[1755776194957,2.94,184.08,184.05,5.4335]
[1755776195256,2.94,184.09,184.02,0.09]
[1755776196454,2.35436746,184.07,184.0,132.68]
[1755776196659,2.94,184.06,184.0,132.68]
[1755776197151,2.94,184.06,183.99,364.99]
[1755776197652,2.94,184.06,183.99,0.09]
[1755776197849,2.94,184.03,183.95,0.09]
[1755776198252,2.35436746,184.03,183.95,0.09]
[1755776198556,2.94,184.02,183.95,0.09]
[1755776199948,2.94,184.02,183.98,5.4356]
[1755776200151,2.35436746,184.04,183.98,0.09]
[1755776200349,2.94,184.01,183.95,0.09]
[1755776200652,2.94,184.01,183.97,0.09]
[1755776201257,2.94,184.0,183.94,0.09]
[1755776201754,2.94,184.0,183.93,132.9]
[1755776201755,2.94,183.99,183.93,132.9]
[1755776202959,2.94,183.99,183.93,138.337]
[1755776203461,2.94,183.99,183.92,0.09]
[1755776203658,2.94,184.04,183.94,0.09]
[1755776204961,2.94,184.04,183.96,0.09]
[1755776205160,2.94,184.01,183.9,2.44436746]
[1755776205361,2.94,184.01,183.91,133.26]
[1755776205662,2.94,184.01,183.95,5.4364]
[1755776206264,2.94,184.01,183.92,2.44436746]
[1755776206265,2.35436746,184.03,183.96,5.4362]
[1755776206657,2.94,183.99,183.96,5.4362]
[1755776206961,2.94,184.02,183.96,0.09]
[1755776208364,2.94,184.02,183.92,2.44436746]
[1755776208664,2.94,184.02,183.93,0.09]
[1755776209562,2.94,184.01,183.93,0.09]
[1755776209955,2.94,184.01,183.96,5.436]
[1755776210154,2.94,184.0,183.96,5.436]
[1755776210362,2.35436746,184.02,183.96,5.436]
[1755776210555,2.94,184.0,183.96,5.436]
[1755776210760,2.94,183.99,183.96,5.436]
[1755776210953,2.94,183.99,183.89,365.94617926]
[1755776210954,2.94,184.04,183.9,0.09]
[1755776211158,5.29436746,184.0,183.9,0.09]
[1755776211462,5.29436746,184.0,183.91,0.09]
[1755776211964,5.29436746,184.0,183.92,5.4372]
[1755776211965,2.94,183.99,183.92,5.4372]
[1755776212567,2.94,183.99,183.91,0.09]
[1755776212966,2.94,183.99,183.93,5.4369]
[1755776213168,2.94,183.99,183.91,0.09]
[1755776213467,2.94,183.99,183.94,5.4366]
[1755776213666,2.97,183.98,183.91,0.09]
[1755776214066,2.97,183.98,183.93,5.437]
[1755776214265,2.97,183.97,183.93,5.437]
[1755776214569,2.97,183.96,183.94,5.4366]
[1755776215459,2.97,183.98,183.95,5.4365]
[1755776215968,2.97,184.01,183.94,0.1]
[1755776216162,2.97,184.01,183.94,2.45436746]
[1755776216671,5.32436746,184.06,183.96,0.1]
[1755776217071,2.97,184.05,183.96,0.1]
[1755776218168,2.97,184.05,183.99,5.4351]
[1755776220370,5.32436746,184.06,184.0,5.435]
[1755776220568,2.97,184.06,183.98,2.45436746]
[1755776220773,2.97,184.1,184.03,5.434]
[1755776221169,2.97,184.08,184.01,0.1]
[1755776221470,2.97,184.06,183.98,133.66]
[1755776221666,2.97,184.04,183.98,133.66]
[1755776221972,2.97,184.02,183.94,0.1]
[1755776222467,2.97,184.02,183.96,5.436]
[1755776222661,2.97,184.0,183.94,0.1]
[1755776223170,2.35436746,183.99,183.91,133.84]
[1755776223562,2.35436746,183.99,183.93,5.437]
[1755776223976,2.35436746,183.99,183.91,133.84]
[1755776224368,2.97,183.96,183.89,365.0]
[1755776224873,2.97,183.96,183.9,5.4379]
[1755776225073,2.97,183.96,183.89,365.0]
[1755776225575,2.97,183.96,183.9,0.1]
[1755776226162,2.97,183.98,183.92,5.4371]
[1755776226770,2.97,183.98,183.9,0.1]
[1755776227366,2.97,183.98,183.92,5.4373]
[1755776227574,2.35436746,183.97,183.89,365.0]
[1755776227874,2.97,183.96,183.89,365.0]
[1755776228072,2.97,183.96,183.9,5.4377]
[1755776229870,2.97,183.91,183.8,0.1]
[1755776230079,2.35436746,183.88,183.8,0.1]
[1755776230476,2.35436746,183.88,183.81,5.4406]
[1755776230975,2.35436746,183.84,183.75,0.1]
[1755776231178,5.32436746,183.84,183.76,133.94]
[1755776231375,2.97,183.84,183.77,0.1]
[1755776231578,5.32436746,183.84,183.77,0.1]
[1755776232479,2.35436746,183.82,183.75,0.1]
[1755776233182,5.32436746,183.82,183.75,0.1]
[1755776233778,2.35436746,183.8,183.72,134.48]
[1755776234681,5.32436746,183.81,183.72,134.48]
[1755776235277,5.32436746,183.79,183.72,134.48]
[1755776236280,2.35436746,183.87,183.68,252.93249634]
[1755776236281,2.97,183.76,183.68,252.93249634]
[1755776236882,2.97,183.76,183.68,253.03249634]
[1755776237181,2.97,183.76,183.68,118.47249634]
[1755776237386,5.32436746,183.76,183.68,118.47249634]
[1755776237994,2.97,183.73,183.66,134.62]
[1755776238282,2.97,183.73,183.66,134.72]
[1755776238584,2.35436746,183.72,183.66,134.72]
[1755776238988,2.97,183.73,183.69,0.1]
[1755776239183,2.97,183.77,183.67,0.1]
[1755776239389,2.35436746,183.76,183.67,0.1]
[1755776239685,5.32436746,183.82,183.72,0.1]
[1755776239876,5.32436746,183.82,183.73,2.45436746]
[1755776240085,5.32436746,183.82,183.77,5.4418]
[1755776240284,2.97,183.81,183.73,0.1]
[1755776240785,2.35436746,183.82,183.73,0.1]
[1755776241383,5.32436746,183.82,183.73,0.1]
[1755776241585,2.35436746,183.82,183.73,0.1]
[1755776241778,2.35436746,183.82,183.78,5.5414]
[1755776241983,5.32436746,183.82,183.78,0.1]
[1755776242385,5.32436746,183.82,183.77,5.4419]
[1755776242584,2.97,183.81,183.74,0.1]
[1755776242988,83.2116667,183.86,183.7,135.0]
[1755776242989,2.35436746,183.78,183.7,135.0]
[1755776243286,2.35436746,183.82,183.71,0.1]
[1755776243585,5.16436746,183.87,183.77,0.1]
[1755776243784,2.35436746,183.88,183.79,0.1]
[1755776243989,2.35436746,183.88,183.82,5.4402]
[1755776244192,2.35436746,183.88,183.79,0.1]
[1755776244587,2.81,183.93,183.82,0.1]
[1755776244781,2.35436746,183.9,183.82,0.1]
[1755776244990,5.16436746,183.9,183.82,0.1]
[1755776245187,5.16436746,183.9,183.84,5.4396]
[1755776245391,5.16436746,183.9,183.82,0.1]
[1755776245792,2.35436746,183.91,183.86,5.439]
[1755776246092,2.81,183.89,183.82,0.1]
[1755776246289,2.81,183.88,183.84,5.4398]
[1755776246485,2.81,183.91,183.78,135.06]
[1755776246694,2.81,183.91,183.81,5.4405]
[1755776246898,2.81,183.88,183.78,135.06]
[1755776247395,2.81,183.85,183.78,135.06]
[1755776247694,2.81,183.85,183.79,5.4412]
[1755776247989,2.81,183.85,183.77,0.1]
[1755776248788,2.81,183.85,183.79,5.441]
[1755776248994,6.67652515,183.89,183.77,0.1]
[1755776249300,2.81,183.89,183.78,0.1]
[1755776249487,2.81,183.89,183.85,5.4395]
[1755776249893,2.81,183.88,183.81,0.1]
[1755776250094,2.81,183.88,183.83,5.4401]
[1755776250290,3.86652515,183.91,183.81,0.1]
[1755776250291,2.81,183.9,183.81,0.1]
[1755776250695,3.86652515,183.91,183.85,5.4395]
[1755776250890,3.86652515,183.91,183.81,0.1]
[1755776250891,2.81,183.89,183.81,0.1]
[1755776251192,2.81,183.89,183.84,5.4396]
[1755776251399,2.81,183.9,183.84,5.4396]
[1755776251705,2.81,183.9,183.81,0.1]
[1755776252197,6.67652515,183.91,183.85,5.4393]
[1755776252391,3.86652515,183.91,183.81,0.1]
[1755776252601,2.81,183.9,183.84,5.4398]
[1755776252802,2.81,183.9,183.81,0.1]
[1755776253105,2.81,183.9,183.84,5.4397]
[1755776253307,2.81,183.9,183.81,0.1]
[1755776254709,3.86652515,183.88,183.77,0.1]
[1755776255005,2.81,183.87,183.77,0.1]
[1755776255203,2.81,183.87,183.78,5.4416]
[1755776255403,2.81,183.87,183.77,0.1]
[1755776255803,2.81,183.87,183.78,5.4415]
[1755776256808,2.81,183.87,183.73,135.32]
[1755776257206,2.81,183.87,183.76,5.442]
[1755776257404,2.81,183.87,183.73,135.32]
[1755776257602,3.86652515,183.85,183.73,135.32]
[1755776257804,2.81,183.84,183.73,135.32]
[1755776258013,2.81,183.84,183.76,5.4421]
[1755776258412,2.81,183.84,183.75,5.4424]
[1755776259012,2.81,183.81,183.72,365.62]
[1755776259411,2.81,183.81,183.72,5.4432]
[1755776259606,2.81,183.78,183.69,135.04]
[1755776261615,2.81,183.78,183.7,5.4437]
[1755776261817,2.81,183.78,183.69,135.04]
[1755776262506,3.86652515,183.79,183.7,0.1]
[1755776263112,2.81,183.81,183.7,0.1]
[1755776263313,6.67652515,183.81,183.7,0.1]
[1755776263812,2.81,183.8,183.7,0.1]
[1755776264412,2.81,183.77,183.7,0.1]
[1755776264816,2.81,183.77,183.71,5.4436]
[1755776265219,2.81,183.77,183.7,0.1]
[1755776265516,3.86652515,183.81,183.73,0.1]
[1755776265917,2.81,183.8,183.73,0.1]
[1755776266118,2.81,183.8,183.69,134.94]
[1755776266517,2.81,183.8,183.72,5.4433]
[1755776266822,2.81,183.8,183.69,134.94]
[1755776267419,2.81,183.8,183.7,5.4439]
[1755776267919,3.86652515,183.78,183.7,5.4439]
[1755776268119,2.81,183.77,183.7,5.4439]
[1755776268321,2.37639177,183.76,183.7,5.4439]
[1755776269130,2.37639177,183.76,183.69,134.94]
[1755776269624,2.37639177,183.76,183.69,140.3842]
[1755776269820,2.81,183.75,183.69,134.94]
[1755776270323,2.81,183.73,183.69,134.94]
[1755776271925,2.37639177,183.74,183.71,0.1]
[1755776272323,5.18639177,183.74,183.69,135.04]
[1755776272723,2.78,183.73,183.69,135.04]
[1755776273319,2.78,183.77,183.7,5.4439]
[1755776273521,2.37639177,183.73,183.69,134.94]
[1755776273720,5.15639177,183.73,183.69,135.04]
[1755776273925,2.37639177,183.73,183.7,0.1]
[1755776274420,5.15639177,183.73,183.69,134.94]
[1755776274619,2.37639177,183.73,183.64,0.1]
[1755776275026,2.37639177,183.73,183.67,5.4446]
[1755776275229,2.37639177,183.73,183.64,0.1]
[1755776275520,2.37639177,183.73,183.68,5.4443]
[1755776275827,2.37639177,183.73,183.64,0.1]
[1755776276126,2.37639177,183.73,183.7,5.4438]
[1755776276322,2.37639177,183.73,183.63,138.40391066]
[1755776276524,2.78,183.72,183.69,5.444]
[1755776276720,2.37639177,183.73,183.64,0.1]
[1755776276919,2.78,183.76,183.64,0.1]
[1755776277125,5.15639177,183.76,183.64,4.64406286]
[1755776277327,5.15639177,183.76,183.65,0.1]
[1755776277827,2.37639177,183.73,183.65,0.1]
[1755776278221,2.37639177,183.73,183.71,0.1]
[1755776278425,2.37639177,183.73,183.67,0.1]
[1755776279325,2.78,183.72,183.65,0.1]
[1755776279923,2.37639177,183.73,183.65,0.1]
[1755776280123,2.78,183.72,183.65,0.1]
[1755776280319,2.37639177,183.71,183.65,0.1]
[1755776280523,2.37639177,183.74,183.65,0.1]
[1755776280723,2.78,183.75,183.69,5.4441]
[1755776281025,2.78,183.75,183.68,0.1]
[1755776281415,5.15639177,183.78,183.68,0.1]
[1755776281622,2.78,183.74,183.68,0.1]
[1755776283420,2.78,183.74,183.7,5.4437]
[1755776283624,2.78,183.75,183.7,5.4437]
[1755776283828,2.37639177,183.76,183.7,5.4437]
[1755776284030,2.78,183.73,183.7,5.4437]
[1755776284330,2.37639177,183.76,183.67,0.1]
[1755776284629,2.78,183.75,183.68,5.4444]
[1755776284831,2.78,183.75,183.67,0.1]
[1755776285330,2.78,183.73,183.67,0.1]
[1755776285832,2.78,183.74,183.67,0.1]
[1755776286420,2.37639177,183.75,183.67,0.1]
[1755776286421,2.78,183.8,183.67,0.1]
[1755776286624,2.37639177,183.76,183.67,0.1]
[1755776286828,2.78,183.75,183.68,5.4443]
[1755776287029,2.78,183.75,183.67,0.1]
[1755776287228,5.15639177,183.75,183.67,0.1]
[1755776287629,2.78,183.74,183.67,0.1]
[1755776289132,2.78,183.74,183.7,5.4438]
[1755776289431,2.78,183.73,183.7,5.4438]
[1755776290033,2.78,183.73,183.71,5.4436]
[1755776290231,2.78,183.73,183.67,0.1]
[1755776291230,2.78,183.73,183.69,5.444]
[1755776291431,2.78,183.72,183.69,5.444]
[1755776291825,2.78,183.75,183.66,135.3]
[1755776292032,2.37639177,183.76,183.71,0.1]
[1755776292326,2.78,183.81,183.71,2.37639177]
[1755776292525,2.37639177,183.85,183.74,2.47639177]
[1755776292729,2.37639177,183.85,183.74,137.89639177]
[1755776292730,2.78,183.84,183.74,137.89639177]
[1755776293127,2.78,183.84,183.77,0.1]
[1755776293427,6.07027255,183.98,183.79,2.37639177]
[1755776293634,2.78,183.92,183.82,0.1]
[1755776293826,2.37639177,183.91,183.83,5.4401]
[1755776294226,2.78,183.9,183.83,5.4401]
[1755776295829,5.15639177,183.9,183.83,5.4401]
[1755776296329,2.78,183.89,183.79,2.37639177]
[1755776296523,2.78,183.89,183.78,0.1]
[1755776296524,2.37639177,183.88,183.78,0.1]
[1755776296724,2.78,183.87,183.78,0.1]
[1755776297228,2.78,183.87,183.8,5.4408]
[1755776297631,2.78,183.87,183.78,0.1]
[1755776298332,2.37639177,183.86,183.78,0.1]
[1755776298533,2.78,183.85,183.78,0.1]
[1755776299431,2.78,183.84,183.8,5.4408]
[1755776299832,2.78,183.84,183.78,0.1]
[1755776300033,2.78,183.84,183.8,0.09]
[1755776300235,2.78,183.83,183.75,2.46639177]
[1755776300437,2.78,183.83,183.75,0.09]
[1755776301030,2.78,183.83,183.77,5.4417]
[1755776302037,5.15639177,183.86,183.76,0.09]
[1755776302338,5.15639177,183.86,183.79,5.4411]
[1755776303439,5.17639177,183.88,183.78,0.1]
[1755776303639,2.8,183.88,183.81,0.1]
[1755776303840,2.8,183.92,183.86,5.439]
[1755776304541,2.8,183.92,183.83,0.1]
[1755776304542,5.17639177,183.92,183.83,0.1]
[1755776304736,2.8,183.91,183.83,0.1]
[1755776304940,2.8,183.91,183.85,5.4395]
[1755776305242,2.8,183.91,183.83,0.1]
[1755776305436,2.37639177,183.92,183.87,5.4387]
[1755776305642,2.37639177,183.94,183.85,2.37639177]
[1755776305941,2.8,183.93,183.86,0.1]
[1755776306242,2.8,183.93,183.89,5.4381]
[1755776306538,5.17639177,183.97,183.89,0.1]
[1755776306930,5.17639177,183.97,183.91,5.4375]
[1755776307134,5.17639177,183.97,183.89,0.1]
[1755776307340,2.8,183.97,183.89,0.1]
[1755776308738,2.8,183.97,183.93,5.4369]
[1755776309045,5.17639177,184.0,183.89,0.1]
[1755776309243,2.8,184.0,183.91,2.37639177]
[1755776309447,2.8,184.0,183.92,0.1]
[1755776309645,5.17639177,184.04,183.95,0.1]
[1755776309842,5.17639177,184.04,183.98,5.4357]
[1755776310042,5.17639177,184.04,183.95,0.1]
[1755776310843,2.37639177,184.02,183.92,2.37639177]
[1755776311043,2.8,184.01,183.92,2.37639177]
[1755776311244,2.8,184.01,183.92,7.81359177]
[1755776311549,2.8,184.01,183.92,5.4372]
[1755776311947,2.8,184.01,183.91,7.91409177]
[1755776312345,2.8,184.09,183.92,3.86239696]
[1755776312645,2.8,184.06,183.93,0.1]
[1755776312849,2.8,184.06,183.94,5.4366]
[1755776313043,2.8,184.06,183.93,0.1]
[1755776315040,2.8,184.06,183.97,5.4358]
[1755776315346,2.8,184.06,183.93,0.1]
[1755776315542,2.8,184.06,183.98,5.4354]
[1755776316750,2.8,184.06,183.96,0.1]
[1755776317150,2.8,184.06,183.97,5.4358]
[1755776317449,2.8,184.06,183.96,0.1]
[1755776317849,2.8,184.06,183.92,3.86239696]
[1755776318145,2.8,184.06,183.93,0.1]
[1755776318352,2.8,184.06,183.95,5.4365]
[1755776318552,2.8,184.06,183.93,0.1]
[1755776319153,2.8,184.03,183.89,3.96239696]
[1755776319455,2.8,184.0,183.89,0.1]
[1755776319653,2.8,184.0,183.92,5.4374]
[1755776320156,2.8,184.0,183.94,5.4368]
[1755776320350,2.8,184.0,183.89,0.1]
[1755776320652,2.8,184.0,183.93,5.4369]
[1755776320952,2.8,184.0,183.89,0.1]
[1755776321151,3.86239696,184.04,183.95,0.1]
[1755776321347,2.8,184.04,183.96,3.86239696]
[1755776321553,2.8,184.04,183.97,0.1]
[1755776321752,2.8,184.04,184.01,5.4348]
[1755776321954,2.8,184.04,183.97,0.1]
[1755776322645,2.8,184.03,183.97,0.1]
[1755776322851,2.8,184.03,183.94,0.1]
[1755776324156,2.8,184.08,183.94,0.1]
[1755776325257,2.8,184.08,184.0,5.4351]
[1755776325453,2.8,184.08,183.97,0.1]
[1755776326460,2.8,184.08,183.99,5.4352]
[1755776327158,2.8,184.08,184.0,5.4349]
[1755776327355,2.8,184.08,183.97,0.1]
[1755776328456,2.8,184.08,183.98,5.4356]
[1755776328654,2.8,184.08,183.97,0.1]
[1755776328859,2.8,184.08,183.98,5.4356]
[1755776329755,2.8,184.08,183.97,0.1]
[1755776330162,2.8,184.08,184.0,0.1]
[1755776330361,2.8,184.08,184.03,0.1]
[1755776331463,2.8,184.07,184.03,5.534]
[1755776332569,2.94,184.06,184.03,5.434]
[1755776333471,2.94,184.07,184.0,0.1]
[1755776333663,2.94,184.07,183.96,3.95239696]
[1755776334267,2.94,184.07,183.99,5.4352]
[1755776334471,2.94,184.07,183.96,3.95239696]
[1755776335169,2.94,184.07,184.0,5.4349]
[1755776336076,2.94,184.07,184.02,5.5245]
[1755776336369,2.94,184.06,184.02,5.5245]
[1755776336566,2.94,184.09,184.01,5.4347]
[1755776336871,2.94,184.09,183.99,0.09]
[1755776337470,2.94,184.09,184.02,5.4345]
[1755776338271,5.30794607,184.09,184.02,5.4345]
[1755776339371,5.30794607,184.09,184.03,5.4342]
[1755776339571,5.30794607,184.09,183.99,2.45794607]
[1755776339972,2.94,184.08,183.99,2.45794607]
[1755776340367,2.94,184.08,183.99,5.5251]
[1755776340868,2.94,184.08,183.96,2.36794607]
[1755776340869,2.36794607,184.06,183.96,2.36794607]
[1755776341074,2.94,184.03,183.95,0.09]
[1755776341476,2.36794607,184.07,184.0,5.4351]
[1755776341673,2.36794607,184.07,183.97,2.36794607]
[1755776341874,2.36794607,184.07,183.98,0.09]
[1755776342070,2.94,184.08,183.98,0.09]
[1755776342271,2.94,184.08,184.01,0.09]
[1755776342672,2.94,184.08,184.0,2.36794607]
[1755776342871,2.94,184.08,183.98,0.09]
[1755776343477,2.94,184.06,183.98,0.09]
[1755776343667,2.94,184.06,183.94,2.45794607]
[1755776343976,2.94,184.03,183.94,2.45794607]
[1755776346480,2.94,184.03,183.94,0.09]
[1755776346680,2.94,184.03,183.99,5.4352]
[1755776346876,2.94,184.02,183.99,5.4352]
[1755776347082,3.86068353,184.07,183.99,5.4352]
[1755776347280,2.94,184.06,183.99,5.4352]
[1755776347480,2.94,184.06,183.98,5.4356]
[1755776347681,2.94,184.06,183.94,0.09]
[1755776347881,3.86068353,184.04,183.94,0.09]
[1755776348078,2.94,184.03,183.94,0.09]
[1755776348787,2.94,184.03,183.9,0.09]
[1755776348978,2.94,184.0,183.9,0.09]
[1755776349177,2.94,184.0,183.93,5.437]
[1755776349679,2.94,184.0,183.9,0.09]
[1755776349879,2.94,184.0,183.94,5.4367]
[1755776350382,2.94,184.0,183.91,5.4375]
[1755776350874,3.86068353,183.98,183.91,5.4375]
[1755776351080,2.94,183.97,183.91,5.4375]
[1755776351478,2.94,183.97,183.9,5.4379]
[1755776352181,2.94,183.97,183.91,5.4377]
[1755776352487,2.94,183.97,183.86,0.09]
[1755776353382,2.94,183.97,183.9,5.4379]
[1755776353584,2.94,183.96,183.86,0.09]
[1755776354183,2.94,183.96,183.85,117.96616084]
[1755776354480,2.94,183.96,183.88,5.4384]
[1755776354873,2.94,183.96,183.85,117.96616084]
[1755776355078,2.94,183.93,183.85,117.96616084]
[1755776355587,2.94,183.93,183.86,5.4391]
[1755776355783,2.94,183.93,183.84,0.09]
[1755776355980,2.94,183.93,183.81,135.16]
[1755776356181,2.94,183.93,183.81,135.25]
[1755776356580,2.94,183.9,183.81,135.25]
[1755776356786,2.94,183.9,183.81,0.09]
[1755776357191,2.94,183.9,183.82,5.4403]
[1755776357487,2.94,183.9,183.81,0.09]
[1755776358485,2.94,183.9,183.83,5.44]
[1755776358679,2.94,183.9,183.81,0.09]
[1755776359184,2.94,183.9,183.84,5.4395]
[1755776360184,2.94,183.9,183.83,5.44]
[1755776360384,2.94,183.9,183.81,0.09]
[1755776360590,2.94,183.9,183.84,5.4396]
[1755776360789,2.94,183.9,183.81,0.09]
[1755776361192,2.94,183.9,183.81,5.5306]
[1755776361882,2.94,183.87,183.77,135.36]
[1755776362488,3.86068353,183.88,183.77,135.36]
[1755776362489,6.80068353,183.88,183.79,0.1]